bitfinex/quotes_ETHUSD_20250801
["timestamp","ask_amount","ask_price","bid_price","bid_amount"]
[1754070870760,5.108,3571.7,3571.2,0.14]
[1754070871257,5.108,3571.7,3571.2,2.94016811]
[1754070871451,5.108,3571.7,3571.2,0.14]
[1754070871959,4.476,3571.7,3571.2,0.14]
[1754070872176,6.246,3571.6,3571.3,1.0927]
[1754070872368,6.246,3571.6,3571.4,0.14]
[1754070873253,0.632,3571.5,3570.7,0.6506]
[1754070873457,4.616,3571.4,3570.9,0.14]
[1754070873684,5.248,3571.4,3570.9,0.14]
[1754070874179,5.46643094,3571.4,3570.7,3.0]
[1754070874357,4.616,3571.4,3570.9,0.4421]
[1754070874682,4.616,3571.4,3571.1,2.80024818]
[1754070874683,0.14,3571.4,3571.1,2.80024818]
[1754070874883,0.14,3571.4,3571.2,2.80017921]
[1754070875066,0.632,3573.0,3571.5,3.0]
[1754070875379,4.475,3572.7,3572.1,2.79941897]
[1754070875582,4.475,3572.7,3572.6,2.7990819]
[1754070875979,4.475,3572.7,3572.2,1.0927]
[1754070876278,4.475,3572.6,3572.5,2.79916025]
[1754070877350,4.475,3572.6,3572.3,3.89201186]
[1754070877546,4.475,3572.6,3572.5,2.79916025]
[1754070878580,4.475,3572.6,3572.5,3.89186025]
[1754070878780,2.79824414,3573.7,3572.5,3.89186025]
[1754070878781,6.727,3574.4,3572.7,5.79900355]
[1754070878954,4.475,3572.9,3572.7,5.79900355]
[1754070879157,4.475,3572.9,3572.7,6.89170355]
[1754070879358,6.727,3574.4,3572.7,4.0927]
[1754070879579,4.474,3574.3,3573.0,3.0]
[1754070879764,1.1201,3574.2,3573.2,3.0]
[1754070879977,1.182,3574.1,3573.0,3.4493357]
[1754070880160,4.474,3574.0,3573.4,2.79843809]
[1754070880357,4.474,3574.0,3573.3,2.79851821]
[1754070880557,3.98009179,3573.9,3572.8,0.4421]
[1754070880877,0.55,3573.7,3572.6,0.6506]
[1754070881065,0.55,3573.5,3572.5,3.4421]
[1754070881267,0.55,3573.5,3572.8,2.79892118]
[1754070881467,0.632,3573.4,3572.5,3.0]
[1754070881707,4.474,3573.3,3572.5,3.0]
[1754070881995,0.5656,3573.2,3572.5,3.0]
[1754070882157,1.1976,3573.2,3572.3,0.6506]
[1754070882361,1.1976,3573.2,3572.2,3.24147085]
[1754070882594,1.1976,3573.2,3572.5,2.7991492]
[1754070883369,1.1976,3573.2,3572.2,1.0927]
[1754070883583,0.632,3573.7,3572.3,1.12069316]
[1754070883784,1.1201,3574.2,3573.3,2.79847247]
[1754070883965,4.473,3574.1,3573.3,2.79845526]
[1754070884171,0.55,3574.0,3573.3,3.89115526]
[1754070884374,0.55,3574.0,3572.9,0.6506]
[1754070884375,1.30951,3573.9,3572.9,0.6506]
[1754070884560,0.632,3573.8,3572.9,0.6506]
[1754070884779,0.632,3573.8,3573.1,2.79868571]
[1754070884780,4.473,3573.7,3573.1,2.79868571]
[1754070884980,0.14,3573.6,3573.1,0.14]
[1754070885221,1.182,3573.5,3572.8,0.4421]
[1754070885380,0.14,3573.3,3572.8,0.14]
[1754070885704,4.473,3573.2,3572.8,0.14]
[1754070885862,4.473,3573.2,3572.5,0.4421]
[1754070885863,4.9013,3573.2,3572.5,2.79910669]
[1754070886062,4.9013,3573.2,3572.3,5.79927332]
[1754070886063,0.8115,3573.1,3572.6,2.93907498]
[1754070886372,0.14,3573.1,3572.6,2.93905833]
[1754070886700,0.14,3573.1,3572.6,4.01665833]
[1754070887285,0.14,3573.1,3572.7,2.79900355]
[1754070887492,4.473,3573.2,3573.0,2.79871136]
[1754070887720,1.22751,3573.9,3573.2,2.79859689]
[1754070887721,0.14,3573.6,3573.2,2.79859689]
[1754070887863,0.14,3573.6,3573.0,0.14]
[1754070887864,4.472,3573.5,3573.0,0.14]
[1754070888059,4.472,3573.5,3573.3,1.2176]
[1754070888903,1.77,3573.4,3573.3,1.2176]
[1754070889079,1.77,3573.4,3573.3,0.14]
[1754070889278,6.242,3573.5,3573.0,2.79873651]
[1754070889604,6.242,3573.5,3573.0,2.93873651]
[1754070890008,6.242,3573.5,3573.0,0.14]
[1754070890299,6.242,3573.5,3573.2,2.79859859]
[1754070890664,6.242,3573.5,3573.1,3.87626049]
[1754070891199,6.242,3573.5,3573.0,2.93873893]
[1754070891401,6.242,3573.5,3573.1,2.79867779]
[1754070891699,6.242,3573.5,3573.1,3.87626339]
[1754070892304,6.242,3573.5,3573.1,1.0776]
[1754070892665,6.242,3573.5,3573.1,3.87625901]
[1754070895309,1.77,3573.5,3573.2,2.79861188]
[1754070895528,4.471,3573.4,3573.3,4.01613356]
[1754070896115,4.471,3573.4,3573.0,3.0]
[1754070896373,4.471,3573.4,3573.3,2.79853356]
[1754070896706,4.471,3573.4,3573.3,3.42883356]
[1754070896912,1.77,3574.1,3574.0,2.79798545]
[1754070897109,4.47,3574.1,3574.0,3.87558545]
[1754070897298,6.727,3574.4,3574.3,2.7977506]
[1754070897498,11.197,3574.4,3574.3,3.8753506]
[1754070897812,11.197,3574.4,3574.3,7.30925096]
[1754070897813,4.47,3574.4,3574.3,7.30925096]
[1754070898013,0.77441366,3575.2,3575.1,2.79712455]
[1754070898240,5.24341366,3575.2,3574.9,0.14]
[1754070898419,5.24341366,3575.2,3575.0,2.79719361]
[1754070898620,5.24341366,3575.2,3574.9,0.14]
[1754070898802,5.24341366,3575.2,3575.0,2.79719274]
[1754070898991,5.24341366,3575.2,3574.9,0.14]
[1754070899324,5.24341366,3575.2,3574.9,2.93726232]
[1754070899621,5.24341366,3575.2,3575.0,2.79718604]
[1754070899799,5.24341366,3575.2,3575.0,2.79715426]
[1754070900005,5.24341366,3575.2,3574.9,3.56755673]
[1754070900203,5.24341366,3575.2,3574.9,0.14]
[1754070900404,0.6715,3575.1,3574.4,3.0]
[1754070900714,0.6715,3575.1,3574.3,2.79773909]
[1754070900715,0.8115,3575.1,3574.5,0.14]
[1754070901091,3.77550632,3575.0,3574.5,0.14]
[1754070901391,5.5678,3574.9,3573.9,0.6303]
[1754070901600,5.5678,3574.9,3574.2,0.14]
[1754070901601,0.14,3574.7,3574.2,0.14]
[1754070901830,4.468,3574.6,3574.5,2.79759406]
[1754070902012,0.77441366,3575.2,3574.7,2.79743508]
[1754070902013,0.91441366,3575.2,3574.7,2.79743508]
[1754070902221,4.468,3575.1,3574.7,0.14]
[1754070902402,4.468,3575.1,3574.7,2.93743742]
[1754070902727,4.468,3575.1,3574.7,0.14]
[1754070903106,0.14,3575.2,3575.1,2.79712455]
[1754070903335,0.14,3575.2,3575.0,2.79717615]
[1754070903336,4.468,3575.2,3575.0,2.79717615]
[1754070903532,4.468,3575.2,3575.1,2.79712455]
[1754070903718,4.468,3575.2,3575.0,2.79717421]
[1754070904026,4.468,3575.2,3575.1,2.79712455]
[1754070904189,4.468,3575.2,3574.9,0.14]
[1754070904395,4.468,3575.2,3574.9,3.14]
[1754070904594,4.468,3575.2,3575.0,2.7971984]
[1754070904794,4.468,3575.2,3574.9,0.14]
[1754070905048,4.468,3575.2,3574.9,2.93727807]
[1754070905198,4.468,3575.2,3574.9,2.93727546]
[1754070905392,4.468,3575.2,3574.9,0.14]
[1754070905598,4.468,3575.2,3574.9,2.93727193]
[1754070905823,1.77,3575.1,3574.9,0.14]
[1754070906417,1.77,3575.1,3574.9,2.93725051]
[1754070906916,1.77,3575.1,3574.9,0.14]
[1754070907534,4.466,3575.0,3574.9,0.14]
[1754070907732,2.32,3574.9,3572.9,2.79877704]
[1754070907973,0.55,3574.7,3574.0,2.79798206]
[1754070908134,1.77,3574.6,3574.1,2.79787237]
[1754070908454,4.466,3574.5,3574.2,3.0]
[1754070908643,4.466,3574.5,3574.2,2.797811]
[1754070909323,4.466,3574.5,3574.1,4.01549319]
[1754070909568,4.466,3574.5,3574.2,3.0]
[1754070909852,4.466,3574.5,3574.1,0.14]
[1754070910041,1.0998,3574.4,3573.9,3.0]
[1754070910243,0.14,3574.2,3573.7,0.14]
[1754070910441,4.465,3574.1,3573.7,0.14]
[1754070910647,0.6715,3574.0,3573.2,2.79859651]
[1754070910857,1.91,3573.9,3573.6,3.0]
[1754070911058,4.465,3573.8,3573.4,0.14]
[1754070911355,5.1365,3573.8,3573.3,0.14]
[1754070911569,5.1365,3573.8,3573.4,3.0]
[1754070911787,4.465,3573.8,3573.3,0.14]
[1754070911926,5.1365,3573.8,3573.3,0.14]
[1754070912333,0.6715,3573.7,3573.4,2.79843423]
[1754070912551,4.465,3573.8,3573.5,2.79837518]
[1754070913038,4.465,3573.8,3573.5,3.0]
[1754070913239,5.1365,3573.8,3573.3,5.93848123]
[1754070913446,4.465,3573.8,3573.5,3.0]
[1754070913648,4.465,3573.8,3573.3,3.14]
[1754070913649,4.465,3573.8,3573.3,2.93850868]
[1754070913837,4.465,3573.8,3573.5,1.0776]
[1754070914037,4.465,3573.8,3573.7,2.79822033]
[1754070914237,4.465,3573.8,3573.6,0.14]
[1754070914464,2.4415,3573.7,3573.0,3.0]
[1754070914663,2.5815,3573.7,3573.1,0.14]
[1754070914838,2.5815,3573.7,3573.2,3.0]
[1754070915166,2.5815,3573.7,3572.8,2.79891218]
[1754070915167,0.14,3573.2,3572.8,2.79891218]
[1754070915331,0.55,3573.5,3573.0,2.79870429]
[1754070915332,4.465,3573.1,3573.0,2.79870429]
[1754070915661,4.465,3573.1,3573.0,3.0]
[1754070916383,6.235,3573.1,3573.0,3.0]
[1754070917482,7.2881,3573.1,3571.9,1.1096]
[1754070917657,0.7654,3573.0,3572.4,3.14]
[1754070918881,0.14,3572.6,3572.1,0.14]
[1754070919062,5.0894,3572.5,3571.8,0.6421]
[1754070919398,4.464,3572.5,3571.8,0.6421]
[1754070919687,4.464,3572.5,3572.0,3.14]
[1754070919884,2.9454,3572.4,3572.0,0.14]
[1754070920086,0.14,3572.1,3571.5,2.93988573]
[1754070920387,0.14,3572.1,3571.5,0.14]
[1754070920388,4.464,3572.0,3571.5,0.14]
[1754070920571,4.464,3572.0,3571.7,3.0]
[1754070920777,0.83725442,3572.5,3571.8,3.90923557]
[1754070921001,0.14,3572.3,3571.8,6.90923557]
[1754070921210,0.14,3572.3,3571.9,1.1096]
[1754070921407,4.464,3572.2,3572.0,2.79948205]
[1754070921597,4.464,3572.2,3572.0,3.90908205]
[1754070921796,0.55,3572.8,3571.8,3.0]
[1754070922011,0.14,3572.6,3572.1,0.14]
[1754070922316,4.464,3572.5,3572.1,0.14]
[1754070922520,4.464,3572.5,3572.1,2.9394734]
[1754070922680,4.464,3572.5,3572.2,2.79938786]
[1754070923025,4.464,3572.5,3572.1,0.14]
[1754070923026,5.0894,3572.5,3572.1,0.14]
[1754070923183,0.14,3572.3,3571.8,3.14]
[1754070923384,0.14,3572.3,3571.9,2.79962726]
[1754070924088,0.14,3572.3,3571.8,7.04929021]
[1754070924404,0.14,3572.6,3572.2,2.79939533]
[1754070924609,0.14,3572.8,3572.5,2.79916025]
[1754070924807,4.464,3572.5,3572.4,2.79921446]
[1754070925117,4.464,3572.5,3572.4,1.1096]
[1754070925416,4.464,3572.5,3572.3,0.14]
[1754070925417,4.464,3572.5,3572.3,2.93929967]
[1754070925584,4.464,3572.5,3572.3,0.14]
[1754070925785,4.9244,3572.5,3571.5,0.6421]
[1754070926007,0.14,3572.3,3571.8,2.93967886]
[1754070926220,0.14,3572.3,3571.8,0.7821]
[1754070926405,0.6254,3572.2,3571.8,0.14]
[1754070926610,4.463,3572.1,3571.8,0.14]
[1754070926922,4.463,3572.1,3571.8,0.7821]
[1754070927127,4.463,3572.1,3571.8,3.58179059]
[1754070927291,4.463,3572.1,3571.8,2.93969059]
[1754070927490,4.463,3572.1,3571.8,0.14]
[1754070927816,4.463,3572.1,3571.8,2.93970347]
[1754070928018,4.463,3572.1,3571.8,4.04930347]
[1754070928219,4.463,3572.1,3571.9,2.79961528]
[1754070928396,4.463,3572.1,3571.8,4.04927707]
[1754070928925,4.463,3572.1,3571.9,2.79962343]
[1754070929126,4.463,3572.1,3571.9,0.6421]
[1754070929300,4.463,3572.1,3571.9,2.79956599]
[1754070930135,4.463,3572.1,3572.0,2.79955207]
[1754070930290,4.463,3572.1,3571.9,3.90921048]
[1754070931032,4.463,3572.1,3571.8,0.14]
[1754070931238,4.463,3572.1,3571.8,2.93964674]
[1754070931435,4.463,3572.1,3571.8,2.9396779]
[1754070931667,4.463,3572.1,3571.9,3.44170025]
[1754070931794,4.463,3572.1,3571.9,3.90920025]
[1754070932130,4.463,3572.1,3571.8,0.14]
[1754070932329,4.463,3572.1,3571.9,2.79963044]
[1754070932631,1.77,3572.0,3571.9,2.79963044]
[1754070932799,1.77,3572.0,3571.9,3.90923044]
[1754070933332,1.77,3572.0,3571.9,1.1096]
[1754070933538,1.77,3572.0,3571.9,2.79963044]
[1754070933896,6.233,3572.0,3571.9,3.90923044]
[1754070934094,1.77,3572.0,3571.9,3.90923044]
[1754070934298,6.232,3572.0,3571.9,3.90923044]
[1754070934527,6.232,3572.0,3571.9,6.90923044]
[1754070934744,1.77,3572.0,3571.9,6.90923044]
[1754070934931,6.232,3572.0,3571.9,6.90923044]
[1754070936134,1.77,3572.0,3571.9,6.90923044]
[1754070938334,1.77,3572.1,3572.0,5.79955207]
[1754070938539,7.02,3573.3,3573.2,2.79861188]
[1754070938733,4.461,3573.3,3573.2,2.79861188]
[1754070939229,4.461,3573.3,3573.0,0.14]
[1754070939429,4.461,3573.3,3572.3,3.0]
[1754070939680,4.461,3573.3,3571.7,2.79976912]
[1754070939681,4.461,3573.3,3573.1,2.79862567]
[1754070939839,4.461,3573.3,3573.0,0.14]
[1754070940176,0.6254,3573.2,3573.0,0.14]
[1754070940388,0.6254,3573.2,3572.1,3.0]
[1754070940389,1.0531,3573.2,3572.1,3.0]
[1754070940675,0.14,3573.1,3572.7,2.79898181]
[1754070940971,4.46,3573.0,3572.6,2.93904825]
[1754070941150,4.46,3573.0,3572.6,0.14]
[1754070941349,4.46,3573.0,3572.8,2.93886188]
[1754070941550,4.46,3573.0,3572.8,0.7821]
[1754070941762,4.46,3573.0,3572.8,0.14]
[1754070942968,5.0854,3573.0,3572.8,0.14]
[1754070943559,4.46,3573.0,3572.8,0.14]
[1754070944387,0.6254,3572.9,3572.3,0.6421]
[1754070944692,0.14,3572.8,3572.3,0.14]
[1754070944892,4.459,3572.7,3572.1,0.14]
[1754070945094,0.7654,3572.6,3572.1,0.14]
[1754070945301,0.14,3572.6,3572.1,1.2496]
[1754070945665,1.0544,3572.5,3572.1,0.14]
[1754070945873,5.5124,3572.4,3572.1,0.14]
[1754070946063,0.6193,3572.3,3572.1,0.14]
[1754070947885,0.6193,3572.3,3571.7,3.0]
[1754070948062,0.6193,3572.3,3572.0,3.0]
[1754070948475,0.6193,3572.3,3571.9,0.14]
[1754070948868,0.6193,3572.3,3571.0,2.80028967]
[1754070948869,0.6193,3572.2,3571.3,3.87348969]
[1754070949074,4.458,3572.1,3571.7,0.14]
[1754070949272,5.0773,3572.1,3571.7,0.14]
[1754070949480,5.0773,3572.1,3571.0,0.627]
[1754070949481,1.57613,3572.0,3571.2,2.80012948]
[1754070949681,0.6193,3571.9,3571.1,2.80023909]
[1754070949966,0.6193,3571.9,3571.0,0.627]
[1754070949967,4.458,3571.8,3571.0,3.42730681]
[1754070950500,0.6193,3571.7,3571.1,3.0]
[1754070950708,0.6193,3571.7,3571.3,0.14]
[1754070951001,0.6193,3571.6,3571.3,0.14]
[1754070951210,3.0,3571.4,3571.3,0.14]
[1754070951421,3.0,3571.4,3571.3,4.0135008]
[1754070952013,3.0,3571.4,3571.3,1.2134]
[1754070952571,3.0,3571.4,3571.3,0.14]
[1754070953366,4.3093,3571.4,3571.0,2.80033501]
[1754070953592,4.3093,3571.4,3570.9,0.14]
[1754070953802,1.1693,3571.3,3570.7,0.627]
[1754070953969,4.457,3571.2,3570.8,0.14]
[1754070954166,4.457,3571.2,3570.8,1.2134]
[1754070954392,3.0,3571.1,3570.8,1.2134]
[1754070955502,4.457,3571.2,3570.8,4.01384365]
[1754070955710,4.457,3571.2,3570.9,2.80037024]
[1754070956205,4.457,3571.2,3570.9,3.87378772]
[1754070956409,0.14,3571.4,3571.0,1.0734]
[1754070956614,0.14,3571.4,3571.3,2.8001008]
[1754070956807,4.456,3571.5,3571.4,2.8000224]
[1754070957282,4.456,3571.5,3571.4,3.8734224]
[1754070958180,0.78146994,3571.9,3571.8,2.79970883]
[1754070958381,0.78146994,3571.9,3571.8,3.87310883]
[1754070958613,0.78146994,3571.9,3571.6,2.7998644]
[1754070958614,5.23746994,3571.9,3571.6,2.7998644]
[1754070958992,5.23746994,3571.9,3571.4,2.80000216]
[1754070959215,5.23746994,3571.9,3571.4,2.80001454]
[1754070959385,0.6193,3571.8,3571.3,2.80008375]
[1754070959586,5.23746994,3571.9,3571.4,2.7999674]
[1754070959782,0.55,3571.7,3571.0,2.80026607]
[1754070959990,0.55,3571.5,3570.4,2.80076533]
[1754070960184,5.0753,3571.6,3570.6,2.80064975]
[1754070960526,0.78146994,3571.9,3571.5,2.79987006]
[1754070960724,4.455,3571.8,3571.6,2.79986428]
[1754070961085,4.455,3571.8,3571.2,0.627]
[1754070961733,0.78146994,3571.9,3571.8,2.79970883]
[1754070961886,5.23646994,3571.9,3571.8,3.07967971]
[1754070962224,5.23646994,3571.9,3571.8,3.87310883]
[1754070963714,0.78146994,3571.9,3571.8,3.87310883]
[1754070964427,5.23546994,3571.9,3571.8,3.87310883]
[1754070965588,5.23546994,3571.9,3571.3,1.0734]
[1754070965788,5.23546994,3571.9,3570.2,12.29307843]
[1754070965789,5.85476994,3571.9,3571.1,1.0734]
[1754070966236,0.55,3571.8,3571.3,2.80004068]
[1754070966434,0.55,3571.8,3571.1,2.80018106]
[1754070966435,0.6193,3571.7,3571.1,2.80018106]
[1754070966635,0.6193,3571.7,3570.4,4.6658682]
[1754070966636,4.454,3571.6,3571.0,2.80030307]
[1754070966810,4.454,3571.6,3570.4,7.25477592]
[1754070966811,5.0733,3571.6,3571.2,0.14]
[1754070967016,4.8891,3571.6,3571.2,0.14]
[1754070967203,0.6193,3571.5,3571.2,0.14]
[1754070967536,0.6193,3571.4,3571.0,0.14]
[1754070967738,4.454,3571.3,3571.1,2.80025762]
[1754070967913,4.454,3571.3,3571.2,2.80017921]
[1754070968730,0.78146994,3571.9,3571.2,3.87357921]
[1754070968923,0.78146994,3571.9,3571.8,2.79970883]
[1754070969240,5.23446994,3571.9,3571.8,2.93970883]
[1754070969538,5.23446994,3571.9,3571.8,4.01310883]
[1754070969706,5.23446994,3571.9,3571.8,2.93970883]
[1754070970114,0.78146994,3571.9,3571.8,3.87310883]
[1754070970316,5.23446994,3571.9,3571.8,4.01310883]
[1754070970712,5.23446994,3571.9,3571.8,7.01310883]
[1754070970966,5.23446994,3571.9,3571.8,5.93970883]
[1754070971321,5.23446994,3571.9,3571.5,0.627]
[1754070971625,5.23446994,3571.9,3570.2,2.8009522]
[1754070971626,5.23446994,3571.9,3571.1,0.627]
[1754070971814,0.55,3571.7,3571.1,2.80020803]
[1754070972022,4.452,3571.6,3571.1,2.80020803]
[1754070972245,0.6193,3571.5,3571.1,2.80020803]
[1754070972757,4.452,3571.6,3571.0,2.80033604]
[1754070972946,4.452,3571.6,3571.3,2.80004531]
[1754070973117,4.452,3571.6,3571.2,2.80016725]
[1754070973319,0.6193,3571.5,3571.0,2.80031418]
[1754070973616,0.55,3571.5,3570.7,2.80052918]
[1754070973851,1.41582699,3571.4,3570.9,2.80037224]
[1754070974016,4.452,3571.3,3570.9,2.80037224]
[1754070974221,4.452,3571.3,3570.8,2.80046437]
[1754070974430,0.6193,3571.2,3570.6,2.80064749]
[1754070974645,0.6193,3571.2,3570.7,3.0]
[1754070974850,0.55,3571.1,3570.1,0.4464]
[1754070975017,0.55,3570.9,3570.2,2.80096353]
[1754070975417,0.55,3570.9,3570.3,2.80086509]
[1754070976066,0.55,3570.9,3570.1,0.4464]
[1754070976255,0.6067,3570.8,3569.7,0.6056]
[1754070976459,2.39207639,3570.9,3569.7,0.6056]
[1754070976460,2.39207639,3570.9,3569.8,0.4474]
[1754070976755,4.452,3570.8,3570.5,2.80066314]
[1754070976958,0.7735068,3571.4,3570.5,2.80066314]
[1754070976959,1.3802068,3571.4,3570.6,2.80062722]
[1754070977260,5.002,3571.3,3570.6,2.80058673]
[1754070977467,5.002,3571.3,3570.5,3.85370328]
[1754070977633,0.55,3571.1,3570.7,2.80054817]
[1754070977831,1.74924218,3571.3,3570.8,2.80047166]
[1754070978034,1.74924218,3571.3,3570.1,2.8010011]
[1754070978035,0.7678115,3571.3,3570.4,2.80077072]
[1754070978245,4.451,3571.2,3571.0,2.80033604]
[1754070978586,4.451,3571.2,3570.9,2.8004137]
[1754070978960,4.451,3571.2,3570.7,2.80056735]
[1754070978961,5.81059385,3571.2,3570.7,2.80055985]
[1754070979134,0.55,3571.1,3570.6,2.80064295]
[1754070979339,0.6067,3571.0,3570.3,0.6056]
[1754070979540,0.6067,3571.0,3570.4,2.80079467]
[1754070979773,0.6067,3571.0,3570.1,0.4474]
[1754070979949,0.55,3571.1,3570.6,2.80063003]
[1754070980270,0.75289385,3571.2,3570.7,1.053]
[1754070980444,4.451,3571.0,3570.5,1.053]
[1754070980646,4.451,3571.0,3570.8,2.80046936]
[1754070980846,4.451,3570.9,3570.8,2.80049288]
[1754070981046,4.451,3570.9,3570.1,2.80100236]
[1754070981271,4.451,3570.9,3570.7,2.80056971]
[1754070981442,4.451,3570.9,3570.8,2.80049288]
[1754070982378,4.451,3570.9,3570.8,3.85349288]
[1754070982578,0.74969548,3571.1,3571.0,2.80033604]
[1754070982738,0.74969548,3571.1,3570.8,3.85349288]
[1754070982739,5.19969548,3571.1,3570.9,0.6056]
[1754070982934,0.74969548,3571.1,3571.0,0.14]
[1754070983140,5.19969548,3571.1,3571.0,0.14]
[1754070983578,16.28051215,3571.1,3569.9,3.0]
[1754070983744,0.6067,3571.0,3570.7,0.14]
[1754070984070,15.1538426,3571.1,3570.4,2.80075169]
[1754070984071,0.6067,3570.9,3570.4,2.80075169]
[1754070984369,0.6067,3570.9,3570.5,0.14]
[1754070984545,0.14,3571.0,3570.5,0.6056]
[1754070984748,5.19969548,3571.1,3571.0,2.80033604]
[1754070984749,0.74969548,3571.1,3571.0,2.80033604]
[1754070984974,5.19969548,3571.1,3571.0,1.193]
[1754070985172,5.19969548,3571.1,3570.9,2.80041302]
[1754070985377,5.19969548,3571.1,3571.0,2.80033604]
[1754070985579,5.19969548,3571.1,3570.9,0.14]
[1754070985775,0.74969548,3571.1,3571.0,2.80033604]
[1754070985982,0.74969548,3571.1,3571.0,3.85333604]
[1754070986389,5.19969548,3571.1,3571.0,3.85333604]
[1754070987200,0.74969548,3571.1,3571.0,3.99333604]
[1754070987397,6.727,3572.3,3572.2,2.79939533]
[1754070987606,11.176,3572.3,3572.2,3.85239533]
[1754070987895,0.75023168,3572.8,3572.7,2.79894455]
[1754070988206,0.75022426,3573.2,3573.1,2.79869021]
[1754070988501,5.19922426,3573.2,3573.0,2.93875081]
[1754070988700,0.75022426,3573.2,3573.0,2.93874213]
[1754070988898,0.75022426,3573.2,3573.1,2.79869021]
[1754070989106,5.19922426,3573.2,3573.1,3.99169021]
[1754070989322,0.75022426,3573.2,3573.1,2.93869021]
[1754070989494,5.19922426,3573.2,3573.1,2.93869021]
[1754070990904,5.19922426,3573.2,3573.1,3.99169021]
[1754070991207,0.75022426,3573.2,3573.1,3.99169021]
[1754070991499,6.729,3573.7,3573.6,2.79829863]
[1754070991702,6.729,3573.7,3573.6,3.85129863]
[1754070992068,11.177,3573.7,3573.6,3.99129863]
[1754070992403,11.177,3573.7,3573.6,2.93829863]
[1754070992702,11.177,3573.7,3573.6,0.14]
[1754070993006,12.73883832,3573.7,3573.2,2.79859965]
[1754070993206,11.7837,3573.7,3573.3,0.14]
[1754070993370,1.1567,3573.6,3572.8,0.4474]
[1754070993706,11.177,3573.7,3573.2,0.14]
[1754070993707,11.317,3573.7,3573.2,0.14]
[1754070993904,1.6187,3573.6,3572.9,2.79878451]
[1754070994090,1.6187,3573.6,3572.3,2.79931696]
[1754070994091,0.14,3573.5,3573.0,2.93876622]
[1754070994291,0.14,3573.5,3573.0,0.14]
[1754070994292,4.447,3573.4,3573.0,0.14]
[1754070994492,1.6187,3573.3,3571.9,3.0]
[1754070994802,1.7587,3573.3,3572.8,0.14]
[1754070995010,1.7587,3573.3,3572.4,3.0]
[1754070995011,9.49214712,3573.0,3572.4,3.0]
[1754070995303,4.446,3572.9,3572.7,2.93897386]
[1754070995507,4.446,3572.9,3572.7,0.14]
[1754070996304,0.7467,3573.2,3572.8,2.79892521]
[1754070996525,4.446,3573.1,3572.9,1.053]
[1754070996826,4.446,3573.0,3572.9,0.14]
[1754070996970,4.446,3573.0,3572.1,2.79943732]
[1754070996971,5.0527,3573.0,3572.2,0.6056]
[1754070997175,5.0527,3573.0,3572.7,0.14]
[1754070997397,0.6067,3572.9,3572.2,0.6056]
[1754070997606,1.11197,3572.9,3572.4,2.93921647]
[1754070998196,1.11197,3572.9,3572.4,1.193]
[1754070998197,0.50527,3572.9,3572.4,1.193]
[1754070998400,9.49214712,3572.5,3572.4,0.14]
[1754070998624,18.35600737,3572.5,3569.9,4.445]
[1754070998931,18.35600737,3572.5,3570.0,1.053]
[1754070998932,0.55,3571.5,3570.0,1.053]
[1754070999136,0.14,3571.2,3570.7,0.14]
[1754070999426,5.0517,3571.1,3570.7,0.14]
[1754070999606,4.445,3571.1,3570.7,0.14]
[1754070999772,4.445,3571.1,3570.7,0.7456]
[1754071000112,4.445,3571.1,3570.7,0.14]
[1754071001382,5.0517,3571.1,3570.7,0.14]
[1754071003410,5.67129147,3571.1,3570.7,0.14]
[1754071003845,0.6067,3571.0,3570.4,2.80079929]
[1754071004050,0.55,3570.9,3570.0,0.4474]
[1754071004224,0.55,3570.9,3570.3,0.14]
[1754071004225,4.585,3570.8,3570.3,0.14]
[1754071004420,6.04944661,3570.8,3570.3,0.14]
[1754071004641,1.0687,3570.7,3570.3,0.14]
[1754071004941,0.6067,3570.7,3570.3,0.14]
[1754071005314,6.04944661,3570.8,3570.3,0.14]
[1754071005953,5.90944661,3570.8,3570.4,1.0582]
[1754071006110,4.445,3570.8,3570.4,3.85900433]
[1754071006319,4.445,3570.8,3570.4,2.80075545]
[1754071006562,4.445,3570.7,3570.3,0.14]
[1754071006767,4.445,3570.7,3570.6,2.80064975]
[1754071007074,0.69,3571.0,3570.5,2.94066051]
[1754071007222,0.14,3571.0,3570.5,3.56706051]
[1754071007572,4.445,3570.9,3570.5,0.14]
[1754071007768,4.445,3570.9,3570.6,2.8006018]
[1754071008275,4.445,3570.9,3570.6,1.0582]
[1754071008427,4.445,3570.9,3570.6,3.85878151]
[1754071008975,4.445,3570.9,3570.6,2.80058151]
[1754071009547,4.445,3570.9,3570.6,2.80062742]
[1754071009866,4.445,3570.9,3570.5,0.14]
[1754071010080,0.6342,3570.8,3570.4,2.80073159]
[1754071010239,0.6342,3570.8,3570.4,2.94073159]
[1754071010442,0.6342,3570.8,3570.4,0.14]
[1754071010754,5.0435,3570.9,3570.4,0.14]
[1754071010955,5.0435,3570.9,3570.4,2.94079892]
[1754071011304,4.444,3570.8,3570.5,3.85887972]
[1754071011508,4.444,3570.8,3570.5,3.85890818]
[1754071012005,4.444,3570.8,3570.4,0.14]
[1754071012160,4.444,3570.8,3570.4,2.94076007]
[1754071012360,4.444,3570.8,3570.5,3.4271187]
[1754071012902,0.6342,3571.4,3570.6,1.0582]
[1754071013099,4.444,3571.3,3570.7,1.1982]